[Event "December 5 Early 2023"]
[Site "https://www.chess.com"]
[Date "2023.12.05"]
[Round "8"]
[White "Vasquez Schroeder, Rodrigo"]
[Black "Caruana, Fabiano"]
[Result "0-1"]
[Board "12"]
[TimeControl "180+1"]
[WhiteFideId "3400042"]
[BlackFideId "2020009"]
[WhiteElo "2916"]
[BlackElo "3075"]
[WhiteTeam "CHI"]
[BlackTeam "USA"]
[WhiteClock "0:00:20"]
[BlackClock "0:00:10"]

1. e4 {[%clk 0:03:00]}  c5 {[%clk 0:02:59]} 2. Nf3 {[%clk 0:02:59]}  Nc6 {[%clk 0:02:59]} 3. d4 {[%clk 0:02:59]}  cxd4 {[%clk 0:02:59]} 4. Nxd4 {[%clk 0:03:00]}  Nf6 {[%clk 0:02:59]} 5. Nc3 {[%clk 0:02:59]}  d6 {[%clk 0:03:00]} 6. Bg5 {[%clk 0:02:59]}  e6 {[%clk 0:03:00]} 7. Qd2 {[%clk 0:02:59]}  a6 {[%clk 0:03:01]} 8. O-O-O {[%clk 0:02:59]}  Bd7 {[%clk 0:03:01]} 9. f4 {[%clk 0:02:54]}  h6 {[%clk 0:03:01]} 10. Bh4 {[%clk 0:02:49]}  Be7 {[%clk 0:03:01]} 11. Nf3 {[%clk 0:02:47]}  Qc7 {[%clk 0:02:59]} 12. Bxf6 {[%clk 0:02:43]}  Bxf6 {[%clk 0:02:58]} 13. Qxd6 {[%clk 0:02:42]}  Qxd6 {[%clk 0:02:59]} 14. Rxd6 {[%clk 0:02:42]}  g5 {[%clk 0:02:56]} 15. g3 {[%clk 0:02:39]}  Rc8 {[%clk 0:02:56]} 16. e5 {[%clk 0:02:16]}  Be7 {[%clk 0:02:56]} 17. Rd1 {[%clk 0:02:12]}  Na5 {[%clk 0:02:49]} 18. Nd4 {[%clk 0:02:08]}  Nc4 {[%clk 0:02:41]} 19. Bxc4 {[%clk 0:02:01]}  Rxc4 {[%clk 0:02:42]} 20. Ne4 {[%clk 0:02:01]}  gxf4 {[%clk 0:02:36]} 21. gxf4 {[%clk 0:02:00]}  Rg8 {[%clk 0:02:37]} 22. c3 {[%clk 0:01:59]}  b5 {[%clk 0:02:23]} 23. a3 {[%clk 0:01:57]}  Bc6 {[%clk 0:01:55]} 24. Nxc6 {[%clk 0:01:49]}  Rxc6 {[%clk 0:01:52]} 25. Rhg1 {[%clk 0:01:45]}  Rxg1 {[%clk 0:01:39]} 26. Rxg1 {[%clk 0:01:45]}  Rc4 {[%clk 0:01:39]} 27. Re1 {[%clk 0:01:46]}  a5 {[%clk 0:01:18]} 28. Kc2 {[%clk 0:01:44]}  a4 {[%clk 0:01:19]} 29. Kd3 {[%clk 0:01:44]}  Rc8 {[%clk 0:01:16]} 30. Rg1 {[%clk 0:01:43]}  Kf8 {[%clk 0:01:13]} 31. Ke3 {[%clk 0:01:35]}  Rd8 {[%clk 0:01:13]} 32. Ke2 {[%clk 0:01:35]}  Rd5 {[%clk 0:01:10]} 33. Rg3 {[%clk 0:01:28]}  Rd7 {[%clk 0:01:03]} 34. Rd3 {[%clk 0:01:27]}  Rc7 {[%clk 0:01:03]} 35. Rd4 {[%clk 0:01:26]}  Kg7 {[%clk 0:01:01]} 36. Kf3 {[%clk 0:01:25]}  Kg6 {[%clk 0:01:01]} 37. Rd2 {[%clk 0:01:20]}  Kg7 {[%clk 0:00:54]} 38. Ng3 {[%clk 0:01:15]}  Kf8 {[%clk 0:00:49]} 39. Ne4 {[%clk 0:01:12]}  Kg7 {[%clk 0:00:49]} 40. Rd4 {[%clk 0:01:10]}  Kg6 {[%clk 0:00:49]} 41. Kg4 {[%clk 0:01:11]}  h5+ {[%clk 0:00:48]} 42. Kf3 {[%clk 0:01:11]}  Kg7 {[%clk 0:00:33]} 43. Ng3 {[%clk 0:01:10]}  Kg6 {[%clk 0:00:33]} 44. Ke4 {[%clk 0:01:08]}  h4 {[%clk 0:00:31]} 45. Ne2 {[%clk 0:01:03]}  f5+ {[%clk 0:00:31]} 46. exf6 {[%clk 0:00:58]}  Kxf6 {[%clk 0:00:32]} 47. Kf3 {[%clk 0:00:53]}  Rc5 {[%clk 0:00:25]} 48. Re4 {[%clk 0:00:52]}  Rd5 {[%clk 0:00:23]} 49. Nd4 {[%clk 0:00:51]}  Kf7 {[%clk 0:00:23]} 50. Rxe6 {[%clk 0:00:44]}  Bxa3 {[%clk 0:00:16]} 51. Re2 {[%clk 0:00:42]}  Bd6 {[%clk 0:00:14]} 52. Ke4 {[%clk 0:00:39]}  Rc5 {[%clk 0:00:15]} 53. h3 {[%clk 0:00:36]}  Be7 {[%clk 0:00:14]} 54. Nf3 {[%clk 0:00:35]}  Bf6 {[%clk 0:00:12]} 55. Rd2 {[%clk 0:00:34]}  a3 {[%clk 0:00:11]} 56. bxa3 {[%clk 0:00:33]}  Rxc3 {[%clk 0:00:12]} 57. Rd5 {[%clk 0:00:30]}  Rb3 {[%clk 0:00:10]} 58. Kf5 {[%clk 0:00:26]}  Rxf3 {[%clk 0:00:09]} 59. Rxb5 {[%clk 0:00:27]}  Rxh3 {[%clk 0:00:09]} 60. Rb7+ {[%clk 0:00:26]}  Be7 {[%clk 0:00:09]} 61. Kg4 {[%clk 0:00:26]}  Rxa3 {[%clk 0:00:09]} 62. Rb5 {[%clk 0:00:25]}  Rg3+ {[%clk 0:00:09]} 63. Kf5 {[%clk 0:00:24]}  h3 {[%clk 0:00:09]} 64. Rb2 {[%clk 0:00:20]}  Rg2 {[%clk 0:00:10]} 0-1

[Event "December 5 Early 2023"]
[Site "https://www.chess.com"]
[Date "2023.12.05"]
[Round "8"]
[White "Sarana, Alexey"]
[Black "Kazakouski, Valery"]
[Result "1-0"]
[Board "15"]
[TimeControl "180+1"]
[WhiteFideId "24133795"]
[BlackFideId "13507443"]
[WhiteElo "2994"]
[BlackElo "2872"]
[WhiteTeam "SRB"]
[BlackTeam "LTU"]
[WhiteClock "0:00:09"]
[BlackClock "0:00:00"]

1. d4 {[%clk 0:03:00]}  Nf6 {[%clk 0:02:54]} 2. c4 {[%clk 0:03:01]}  c6 {[%clk 0:02:54]} 3. Nc3 {[%clk 0:03:02]}  d5 {[%clk 0:02:55]} 4. Nf3 {[%clk 0:03:02]}  dxc4 {[%clk 0:02:54]} 5. a4 {[%clk 0:03:02]}  Bf5 {[%clk 0:02:54]} 6. Ne5 {[%clk 0:03:02]}  Nbd7 {[%clk 0:02:54]} 7. Nxc4 {[%clk 0:03:02]}  Qc7 {[%clk 0:02:54]} 8. g3 {[%clk 0:03:02]}  e5 {[%clk 0:02:54]} 9. dxe5 {[%clk 0:03:03]}  Nxe5 {[%clk 0:02:55]} 10. Bf4 {[%clk 0:03:04]}  Nfd7 {[%clk 0:02:55]} 11. Bg2 {[%clk 0:03:03]}  g5 {[%clk 0:02:55]} 12. Bxe5 {[%clk 0:02:58]}  Nxe5 {[%clk 0:02:51]} 13. Qd4 {[%clk 0:02:59]}  f6 {[%clk 0:02:50]} 14. Ne3 {[%clk 0:02:56]}  Bg6 {[%clk 0:02:50]} 15. O-O-O {[%clk 0:02:51]}  Qb6 {[%clk 0:02:32]} 16. Ne4 {[%clk 0:02:09]}  Be7 {[%clk 0:02:22]} 17. Nd6+ {[%clk 0:01:59]}  Kf8 {[%clk 0:02:18]} 18. f4 {[%clk 0:01:40]}  Nf7 {[%clk 0:01:43]} 19. Nec4 {[%clk 0:01:26]}  Qxd4 {[%clk 0:01:28]} 20. Rxd4 {[%clk 0:01:27]}  Nxd6 {[%clk 0:01:27]} 21. Nxd6 {[%clk 0:01:27]}  Rd8 {[%clk 0:01:16]} 22. Rhd1 {[%clk 0:01:25]}  Rxd6 {[%clk 0:00:46]} 23. Rxd6 {[%clk 0:01:25]}  Bxd6 {[%clk 0:00:47]} 24. Rxd6 {[%clk 0:01:25]}  Ke7 {[%clk 0:00:47]} 25. Rd4 {[%clk 0:01:26]}  a5 {[%clk 0:00:43]} 26. Be4 {[%clk 0:00:50]}  gxf4 {[%clk 0:00:38]} 27. gxf4 {[%clk 0:00:45]}  Ke6 {[%clk 0:00:26]} 28. Bf3 {[%clk 0:00:37]}  Ke7 {[%clk 0:00:20]} 29. Kd2 {[%clk 0:00:22]}  Rd8 {[%clk 0:00:20]} 30. Kc3 {[%clk 0:00:23]}  Rxd4 {[%clk 0:00:17]} 31. Kxd4 {[%clk 0:00:24]}  h6 {[%clk 0:00:17]} 32. Kc5 {[%clk 0:00:23]}  Bc2 {[%clk 0:00:12]} 33. Kb6 {[%clk 0:00:24]}  Bxa4 {[%clk 0:00:07]} 34. Kxb7 {[%clk 0:00:24]}  Kd6 {[%clk 0:00:08]} 35. Kb6 {[%clk 0:00:24]}  Bc2 {[%clk 0:00:05]} 36. Kxa5 {[%clk 0:00:24]}  c5 {[%clk 0:00:05]} 37. Kb5 {[%clk 0:00:22]}  Bf5 {[%clk 0:00:04]} 38. Kc4 {[%clk 0:00:23]}  Be6+ {[%clk 0:00:05]} 39. Kc3 {[%clk 0:00:23]}  Bf7 {[%clk 0:00:05]} 40. e3 {[%clk 0:00:23]}  Be6 {[%clk 0:00:05]} 41. Be2 {[%clk 0:00:23]}  Bd7 {[%clk 0:00:05]} 42. Bc4 {[%clk 0:00:23]}  Bc6 {[%clk 0:00:06]} 43. Kd3 {[%clk 0:00:24]}  Bb7 {[%clk 0:00:06]} 44. Ke2 {[%clk 0:00:24]}  Bc8 {[%clk 0:00:07]} 45. Kf2 {[%clk 0:00:24]}  Bf5 {[%clk 0:00:06]} 46. Kg3 {[%clk 0:00:24]}  Ke7 {[%clk 0:00:07]} 47. Kf3 {[%clk 0:00:23]}  Kd6 {[%clk 0:00:06]} 48. Kf2 {[%clk 0:00:21]}  Ke7 {[%clk 0:00:06]} 49. Kg3 {[%clk 0:00:21]}  Kf8 {[%clk 0:00:06]} 50. Kf3 {[%clk 0:00:21]}  Ke7 {[%clk 0:00:06]} 51. e4 {[%clk 0:00:20]}  Bg6 {[%clk 0:00:06]} 52. e5 {[%clk 0:00:19]}  Bf5 {[%clk 0:00:04]} 53. Kg3 {[%clk 0:00:19]}  Bd7 {[%clk 0:00:03]} 54. Kh4 {[%clk 0:00:19]}  Be8 {[%clk 0:00:03]} 55. Kg4 {[%clk 0:00:19]}  Bg6 {[%clk 0:00:03]} 56. f5 {[%clk 0:00:13]}  Be8 {[%clk 0:00:03]} 57. e6 {[%clk 0:00:14]}  Kd6 {[%clk 0:00:03]} 58. Kf4 {[%clk 0:00:14]}  Bc6 {[%clk 0:00:02]} 59. Be2 {[%clk 0:00:14]}  Be8 {[%clk 0:00:02]} 60. Bf3 {[%clk 0:00:14]}  Ke7 {[%clk 0:00:02]} 61. Bd5 {[%clk 0:00:08]}  Kd6 {[%clk 0:00:02]} 62. Bc4 {[%clk 0:00:08]}  Bc6 {[%clk 0:00:03]} 63. Ba6 {[%clk 0:00:09]}  Be8 {[%clk 0:00:03]} 64. Bc8 {[%clk 0:00:09]}  Ke7 {[%clk 0:00:00]} 65. Kg4 {[%clk 0:00:09]} 1-0

[Event "December 5 Early 2023"]
[Site "https://www.chess.com"]
[Date "2023.12.05"]
[Round "8"]
[White "Klukin, Kirill"]
[Black "Nguyen, Ngoc Truong Son"]
[Result "1-0"]
[Board "16"]
[TimeControl "180+1"]
[WhiteFideId "24199273"]
[BlackFideId "12401110"]
[WhiteElo "2845"]
[BlackElo "2948"]
[WhiteTeam "RUS"]
[BlackTeam "VIE"]
[WhiteClock "0:01:14"]
[BlackClock "0:00:00"]

1. d4 {[%clk 0:03:00]}  Nf6 {[%clk 0:02:59]} 2. c4 {[%clk 0:03:00]}  e6 {[%clk 0:02:59]} 3. Nc3 {[%clk 0:03:01]}  d5 {[%clk 0:02:59]} 4. Bg5 {[%clk 0:03:01]}  Be7 {[%clk 0:02:55]} 5. cxd5 {[%clk 0:03:01]}  exd5 {[%clk 0:02:55]} 6. e3 {[%clk 0:03:01]}  c6 {[%clk 0:02:55]} 7. Bd3 {[%clk 0:03:02]}  h6 {[%clk 0:02:55]} 8. Bf4 {[%clk 0:03:02]}  Be6 {[%clk 0:02:52]} 9. Nf3 {[%clk 0:03:02]}  Nbd7 {[%clk 0:02:50]} 10. Qc2 {[%clk 0:03:02]}  Nh5 {[%clk 0:02:47]} 11. Be5 {[%clk 0:03:02]}  Nxe5 {[%clk 0:02:41]} 12. dxe5 {[%clk 0:03:02]}  Qb8 {[%clk 0:02:31]} 13. h3 {[%clk 0:02:59]}  g6 {[%clk 0:02:24]} 14. Ne2 {[%clk 0:02:44]}  Ng7 {[%clk 0:02:07]} 15. Ned4 {[%clk 0:02:36]}  O-O {[%clk 0:01:37]} 16. O-O {[%clk 0:02:25]}  Qc8 {[%clk 0:01:20]} 17. Rac1 {[%clk 0:02:17]}  c5 {[%clk 0:01:17]} 18. Nxe6 {[%clk 0:02:10]}  Qxe6 {[%clk 0:01:18]} 19. e4 {[%clk 0:02:07]}  d4 {[%clk 0:01:03]} 20. Bc4 {[%clk 0:02:04]}  Qd7 {[%clk 0:00:55]} 21. Qb3 {[%clk 0:02:03]}  Rab8 {[%clk 0:00:49]} 22. a4 {[%clk 0:02:03]}  Ne6 {[%clk 0:00:42]} 23. Ne1 {[%clk 0:01:55]}  Rfe8 {[%clk 0:00:18]} 24. Nd3 {[%clk 0:01:52]}  Bf8 {[%clk 0:00:12]} 25. f4 {[%clk 0:01:46]}  Kh8 {[%clk 0:00:12]} 26. f5 {[%clk 0:01:29]}  Ng5 {[%clk 0:00:11]} 27. Rce1 {[%clk 0:01:30]}  gxf5 {[%clk 0:00:11]} 28. exf5 {[%clk 0:01:29]}  Qc7 {[%clk 0:00:06]} 29. h4 {[%clk 0:01:27]}  Nh7 {[%clk 0:00:07]} 30. Bxf7 {[%clk 0:01:27]}  Re7 {[%clk 0:00:07]} 31. Bc4 {[%clk 0:01:23]}  Rg7 {[%clk 0:00:07]} 32. Nf4 {[%clk 0:01:21]}  Rg4 {[%clk 0:00:07]} 33. Qf3 {[%clk 0:01:17]}  h5 {[%clk 0:00:04]} 34. Nxh5 {[%clk 0:01:13]}  Rxh4 {[%clk 0:00:04]} 35. Nf4 {[%clk 0:01:14]}  Rh6 {[%clk 0:00:03]} 36. Ng6+ {[%clk 0:01:13]}  Kg7 {[%clk 0:00:03]} 37. Qg4 {[%clk 0:01:14]}  Re8 {[%clk 0:00:00]} 38. f6+ {[%clk 0:01:14]} 1-0

[Event "December 5 Early 2023"]
[Site "https://www.chess.com"]
[Date "2023.12.05"]
[Round "8"]
[White "IM_ArthurDW08"]
[Black "Khismatullin, Denis"]
[Result "0-1"]
[Board "17"]
[TimeControl "180+1"]
[BlackFideId "4142578"]
[WhiteElo "2818"]
[BlackElo "2938"]
[BlackTeam "RUS"]
[WhiteClock "0:01:02"]
[BlackClock "0:00:38"]

1. e4 {[%clk 0:03:00]}  c5 {[%clk 0:02:59]} 2. Nf3 {[%clk 0:02:59]}  e6 {[%clk 0:02:59]} 3. d4 {[%clk 0:02:54]}  cxd4 {[%clk 0:02:58]} 4. Nxd4 {[%clk 0:02:55]}  Nf6 {[%clk 0:02:58]} 5. Bd3 {[%clk 0:02:51]}  Nc6 {[%clk 0:02:52]} 6. Nxc6 {[%clk 0:02:51]}  bxc6 {[%clk 0:02:51]} 7. O-O {[%clk 0:02:52]}  d5 {[%clk 0:02:51]} 8. Nd2 {[%clk 0:02:53]}  Be7 {[%clk 0:02:50]} 9. e5 {[%clk 0:02:51]}  Nd7 {[%clk 0:02:49]} 10. f4 {[%clk 0:02:52]}  a5 {[%clk 0:02:44]} 11. Nf3 {[%clk 0:02:49]}  Nc5 {[%clk 0:02:40]} 12. Be2 {[%clk 0:02:33]}  O-O {[%clk 0:02:38]} 13. Nd4 {[%clk 0:02:26]}  Qc7 {[%clk 0:02:29]} 14. Be3 {[%clk 0:02:19]}  a4 {[%clk 0:02:25]} 15. c4 {[%clk 0:02:13]}  Rb8 {[%clk 0:02:15]} 16. b3 {[%clk 0:02:06]}  axb3 {[%clk 0:02:14]} 17. axb3 {[%clk 0:02:07]}  Ne4 {[%clk 0:01:55]} 18. Rc1 {[%clk 0:02:03]}  c5 {[%clk 0:01:39]} 19. Nb5 {[%clk 0:01:50]}  Qd7 {[%clk 0:01:30]} 20. f5 {[%clk 0:01:44]}  dxc4 {[%clk 0:01:13]} 21. fxe6 {[%clk 0:01:39]}  Qxd1 {[%clk 0:01:03]} 22. exf7+ {[%clk 0:01:37]}  Kh8 {[%clk 0:00:57]} 23. Rfxd1 {[%clk 0:01:34]}  cxb3 {[%clk 0:00:55]} 24. Nd6 {[%clk 0:01:34]}  Bxd6 {[%clk 0:00:50]} 25. exd6 {[%clk 0:01:27]}  b2 {[%clk 0:00:50]} 26. Rb1 {[%clk 0:01:22]}  Nc3 {[%clk 0:00:49]} 27. d7 {[%clk 0:01:23]}  Bxd7 {[%clk 0:00:43]} 28. Rxd7 {[%clk 0:01:05]}  Nxe2+ {[%clk 0:00:42]} 29. Kf1 {[%clk 0:01:03]}  Nc3 {[%clk 0:00:41]} 30. Rxb2 {[%clk 0:01:02]}  Rxb2 {[%clk 0:00:38]} 31. Bxc5 {[%clk 0:01:03]}  Rb1+ {[%clk 0:00:37]} 32. Kf2 {[%clk 0:01:02]}  Ne4+ {[%clk 0:00:38]} 0-1

[Event "December 5 Early 2023"]
[Site "https://www.chess.com"]
[Date "2023.12.05"]
[Round "8"]
[White "Yuan, Qingyu"]
[Black "Paravyan, David"]
[Result "0-1"]
[Board "19"]
[TimeControl "180+1"]
[WhiteFideId "8609772"]
[BlackFideId "4194985"]
[WhiteElo "2811"]
[BlackElo "2997"]
[WhiteTeam "CHN"]
[BlackTeam "FID"]
[WhiteClock "0:00:42"]
[BlackClock "0:02:04"]

1. Nf3 {[%clk 0:03:00]}  d5 {[%clk 0:03:00]} 2. e3 {[%clk 0:03:01]}  Nf6 {[%clk 0:03:00]} 3. c4 {[%clk 0:03:01]}  e6 {[%clk 0:03:01]} 4. Nc3 {[%clk 0:03:01]}  Be7 {[%clk 0:03:01]} 5. b3 {[%clk 0:03:01]}  O-O {[%clk 0:03:01]} 6. Bb2 {[%clk 0:03:01]}  c5 {[%clk 0:03:02]} 7. d4 {[%clk 0:02:58]}  cxd4 {[%clk 0:03:01]} 8. exd4 {[%clk 0:02:46]}  dxc4 {[%clk 0:03:02]} 9. bxc4 {[%clk 0:02:42]}  b6 {[%clk 0:03:02]} 10. Be2 {[%clk 0:02:40]}  Bb7 {[%clk 0:03:02]} 11. O-O {[%clk 0:02:40]}  Nbd7 {[%clk 0:03:03]} 12. Qb3 {[%clk 0:02:37]}  Rc8 {[%clk 0:03:01]} 13. Rfd1 {[%clk 0:02:35]}  Qc7 {[%clk 0:03:01]} 14. Rac1 {[%clk 0:02:35]}  Qb8 {[%clk 0:03:00]} 15. d5 {[%clk 0:02:24]}  Nc5 {[%clk 0:03:00]} 16. Qc2 {[%clk 0:02:24]}  Rfd8 {[%clk 0:02:51]} 17. dxe6 {[%clk 0:02:11]}  Nxe6 {[%clk 0:02:52]} 18. Rxd8+ {[%clk 0:01:52]}  Rxd8 {[%clk 0:02:53]} 19. Rd1 {[%clk 0:01:36]}  Nf4 {[%clk 0:02:50]} 20. Rxd8+ {[%clk 0:01:29]}  Qxd8 {[%clk 0:02:51]} 21. Bd1 {[%clk 0:01:22]}  Bc5 {[%clk 0:02:48]} 22. Bc1 {[%clk 0:01:15]}  Nd3 {[%clk 0:02:45]} 23. Be3 {[%clk 0:01:13]}  Bxe3 {[%clk 0:02:44]} 24. fxe3 {[%clk 0:01:14]}  Nc5 {[%clk 0:02:43]} 25. Be2 {[%clk 0:01:10]}  Qe7 {[%clk 0:02:43]} 26. Qd2 {[%clk 0:01:08]}  g6 {[%clk 0:02:42]} 27. Nd5 {[%clk 0:01:05]}  Bxd5 {[%clk 0:02:38]} 28. cxd5 {[%clk 0:01:05]}  Nfe4 {[%clk 0:02:32]} 29. Qd4 {[%clk 0:01:05]}  Nd6 {[%clk 0:02:32]} 30. Bd3 {[%clk 0:00:59]}  Nxd3 {[%clk 0:02:29]} 31. Qxd3 {[%clk 0:00:59]}  Qc7 {[%clk 0:02:22]} 32. h3 {[%clk 0:00:56]}  Qc1+ {[%clk 0:02:19]} 33. Kh2 {[%clk 0:00:56]}  Qb2 {[%clk 0:02:18]} 34. e4 {[%clk 0:00:51]}  Qxa2 {[%clk 0:02:04]} 35. e5 {[%clk 0:00:51]}  Qc4 {[%clk 0:02:04]} 36. exd6 {[%clk 0:00:47]}  Qxd3 {[%clk 0:02:03]} 37. d7 {[%clk 0:00:47]}  Qxd5 {[%clk 0:02:04]} 38. Ne5 {[%clk 0:00:42]}  Qxe5+ {[%clk 0:02:04]} 0-1

[Event "December 5 Early 2023"]
[Site "https://www.chess.com"]
[Date "2023.12.05"]
[Round "8"]
[White "Durarbayli, Vasif"]
[Black "Dragnev, Valentin"]
[Result "0-1"]
[Board "21"]
[TimeControl "180+1"]
[WhiteFideId "13402935"]
[BlackFideId "1634852"]
[WhiteElo "2984"]
[BlackElo "2794"]
[WhiteTeam "AZE"]
[BlackTeam "AUT"]
[WhiteClock "0:00:00"]
[BlackClock "0:00:26"]

1. e4 {[%clk 0:03:00]}  c6 {[%clk 0:02:57]} 2. d4 {[%clk 0:03:01]}  d5 {[%clk 0:02:57]} 3. e5 {[%clk 0:03:01]}  Bf5 {[%clk 0:02:56]} 4. Nf3 {[%clk 0:03:00]}  e6 {[%clk 0:02:56]} 5. Be2 {[%clk 0:03:01]}  c5 {[%clk 0:02:56]} 6. Be3 {[%clk 0:02:58]}  Nd7 {[%clk 0:02:37]} 7. c4 {[%clk 0:02:41]}  Ne7 {[%clk 0:02:35]} 8. Nc3 {[%clk 0:02:39]}  dxc4 {[%clk 0:02:35]} 9. Bxc4 {[%clk 0:02:35]}  a6 {[%clk 0:02:35]} 10. O-O {[%clk 0:02:17]}  Nc6 {[%clk 0:02:32]} 11. d5 {[%clk 0:02:07]}  Ncxe5 {[%clk 0:02:32]} 12. Nxe5 {[%clk 0:01:54]}  Nxe5 {[%clk 0:02:33]} 13. Qa4+ {[%clk 0:01:54]}  b5 {[%clk 0:02:27]} 14. Nxb5 {[%clk 0:01:53]}  axb5 {[%clk 0:02:27]} 15. Bxb5+ {[%clk 0:01:54]}  Ke7 {[%clk 0:02:27]} 16. d6+ {[%clk 0:01:17]}  Kf6 {[%clk 0:02:05]} 17. Qh4+ {[%clk 0:01:15]}  Kg6 {[%clk 0:02:05]} 18. Qg3+ {[%clk 0:01:07]}  Ng4 {[%clk 0:02:00]} 19. Rad1 {[%clk 0:00:58]}  h5 {[%clk 0:01:48]} 20. Bxc5 {[%clk 0:00:33]}  h4 {[%clk 0:01:48]} 21. Qf3 {[%clk 0:00:34]}  Rb8 {[%clk 0:01:09]} 22. Bd3 {[%clk 0:00:34]}  Qg5 {[%clk 0:01:00]} 23. Be3 {[%clk 0:00:30]}  Nxe3 {[%clk 0:00:55]} 24. fxe3 {[%clk 0:00:30]}  Rxb2 {[%clk 0:00:50]} 25. e4 {[%clk 0:00:22]}  Bg4 {[%clk 0:00:43]} 26. Qxf7+ {[%clk 0:00:20]}  Kh6 {[%clk 0:00:43]} 27. Rb1 {[%clk 0:00:09]}  Rxg2+ {[%clk 0:00:36]} 28. Kh1 {[%clk 0:00:09]}  Bxd6 {[%clk 0:00:29]} 29. e5 {[%clk 0:00:00]}  Rxh2+ {[%clk 0:00:26]} 0-1

[Event "December 5 Early 2023"]
[Site "https://www.chess.com"]
[Date "2023.12.05"]
[Round "8"]
[White "Yilmaz, Mustafa"]
[Black "Damjanovic, Vuk"]
[Result "1-0"]
[Board "22"]
[TimeControl "180+1"]
[WhiteFideId "6302718"]
[BlackFideId "980021"]
[WhiteElo "2951"]
[BlackElo "2784"]
[WhiteTeam "TUR"]
[BlackTeam "SRB"]
[WhiteClock "0:01:00"]
[BlackClock "0:00:40"]

1. c4 {[%clk 0:03:00]}  Nc6 {[%clk 0:02:55]} 2. d4 {[%clk 0:02:50]}  e5 {[%clk 0:02:55]} 3. d5 {[%clk 0:02:45]}  Bb4+ {[%clk 0:02:55]} 4. Nd2 {[%clk 0:02:44]}  Nce7 {[%clk 0:02:54]} 5. a3 {[%clk 0:02:43]}  Bxd2+ {[%clk 0:02:54]} 6. Qxd2 {[%clk 0:02:44]}  d6 {[%clk 0:02:53]} 7. g3 {[%clk 0:02:34]}  f5 {[%clk 0:02:53]} 8. Bg2 {[%clk 0:02:34]}  Nf6 {[%clk 0:02:53]} 9. Nf3 {[%clk 0:02:34]}  O-O {[%clk 0:02:54]} 10. O-O {[%clk 0:02:34]}  a5 {[%clk 0:02:54]} 11. b3 {[%clk 0:02:32]}  h6 {[%clk 0:02:52]} 12. Bb2 {[%clk 0:02:32]}  g5 {[%clk 0:02:31]} 13. h4 {[%clk 0:02:32]}  f4 {[%clk 0:02:20]} 14. hxg5 {[%clk 0:02:29]}  Ne4 {[%clk 0:02:20]} 15. Qc2 {[%clk 0:02:21]}  Bf5 {[%clk 0:02:19]} 16. g4 {[%clk 0:01:52]}  Bh7 {[%clk 0:02:16]} 17. Nxe5 {[%clk 0:01:31]}  Nxg5 {[%clk 0:01:52]} 18. Nd3 {[%clk 0:01:30]}  f3 {[%clk 0:01:38]} 19. Qc3 {[%clk 0:01:30]}  Kf7 {[%clk 0:01:29]} 20. exf3 {[%clk 0:01:30]}  Rg8 {[%clk 0:01:05]} 21. Qf6+ {[%clk 0:01:18]}  Ke8 {[%clk 0:01:06]} 22. Nf4 {[%clk 0:01:18]}  Qd7 {[%clk 0:00:54]} 23. Rae1 {[%clk 0:01:16]}  Kd8 {[%clk 0:00:50]} 24. Ne6+ {[%clk 0:01:08]}  Nxe6 {[%clk 0:00:48]} 25. Rxe6 {[%clk 0:01:09]}  Rg6 {[%clk 0:00:40]} 26. Qh8+ {[%clk 0:01:00]} 1-0

[Event "December 5 Early 2023"]
[Site "https://www.chess.com"]
[Date "2023.12.05"]
[Round "8"]
[White "Wagner, Dennis"]
[Black "Maksimovic, Bojan"]
[Result "0-1"]
[Board "23"]
[TimeControl "180+1"]
[WhiteFideId "24650684"]
[BlackFideId "14408120"]
[WhiteElo "2774"]
[BlackElo "2930"]
[WhiteTeam "GER"]
[BlackTeam "BIH"]
[WhiteClock "0:00:27"]
[BlackClock "0:00:37"]

1. e4 {[%clk 0:03:00]}  a6 {[%clk 0:03:00]} 2. d4 {[%clk 0:02:59]}  e6 {[%clk 0:03:01]} 3. Nf3 {[%clk 0:02:56]}  d5 {[%clk 0:03:01]} 4. Nc3 {[%clk 0:02:53]}  Bb4 {[%clk 0:02:46]} 5. e5 {[%clk 0:02:53]}  Bd7 {[%clk 0:02:42]} 6. Bd2 {[%clk 0:02:31]}  Bxc3 {[%clk 0:02:40]} 7. Bxc3 {[%clk 0:02:30]}  Bb5 {[%clk 0:02:41]} 8. Bd3 {[%clk 0:02:19]}  Bxd3 {[%clk 0:02:27]} 9. Qxd3 {[%clk 0:02:19]}  Nd7 {[%clk 0:02:27]} 10. h4 {[%clk 0:02:17]}  Ne7 {[%clk 0:02:24]} 11. h5 {[%clk 0:02:17]}  h6 {[%clk 0:02:24]} 12. g4 {[%clk 0:02:10]}  Rc8 {[%clk 0:02:22]} 13. O-O-O {[%clk 0:02:09]}  c5 {[%clk 0:02:21]} 14. Kb1 {[%clk 0:02:09]}  Qb6 {[%clk 0:02:15]} 15. Nh4 {[%clk 0:01:51]}  Qb5 {[%clk 0:02:04]} 16. Qg3 {[%clk 0:01:27]}  cxd4 {[%clk 0:01:52]} 17. Bxd4 {[%clk 0:01:26]}  Nc6 {[%clk 0:01:34]} 18. f4 {[%clk 0:01:20]}  Nxd4 {[%clk 0:01:07]} 19. Rxd4 {[%clk 0:01:21]}  Qe2 {[%clk 0:01:07]} 20. Rc1 {[%clk 0:01:11]}  Nc5 {[%clk 0:01:03]} 21. f5 {[%clk 0:00:57]}  Ne4 {[%clk 0:00:58]} 22. Qf4 {[%clk 0:00:57]}  Rc4 {[%clk 0:00:38]} 23. Rxc4 {[%clk 0:00:44]}  Qxc4 {[%clk 0:00:39]} 24. Re1 {[%clk 0:00:32]}  Nc3+ {[%clk 0:00:37]} 25. bxc3 {[%clk 0:00:27]}  Qxf4 {[%clk 0:00:37]} 0-1

[Event "December 5 Early 2023"]
[Site "https://www.chess.com"]
[Date "2023.12.05"]
[Round "8"]
[White "Svane, Rasmus"]
[Black "Wagh Suyog"]
[Result "1-0"]
[Board "24"]
[TimeControl "180+1"]
[WhiteFideId "4657101"]
[BlackFideId "25071688"]
[WhiteElo "2929"]
[BlackElo "2771"]
[WhiteTeam "GER"]
[BlackTeam "IND"]
[WhiteClock "0:00:09"]
[BlackClock "0:00:00"]

1. d4 {[%clk 0:02:58]}  Nf6 {[%clk 0:02:59]} 2. Nf3 {[%clk 0:02:57]}  d5 {[%clk 0:02:59]} 3. c4 {[%clk 0:02:54]}  e6 {[%clk 0:02:59]} 4. Nc3 {[%clk 0:02:44]}  Bb4 {[%clk 0:02:59]} 5. e3 {[%clk 0:02:30]}  O-O {[%clk 0:02:57]} 6. Bd2 {[%clk 0:02:29]}  b6 {[%clk 0:02:53]} 7. cxd5 {[%clk 0:02:21]}  exd5 {[%clk 0:02:53]} 8. Rc1 {[%clk 0:02:20]}  Be7 {[%clk 0:02:50]} 9. Bd3 {[%clk 0:02:17]}  c5 {[%clk 0:02:45]} 10. O-O {[%clk 0:02:16]}  Nc6 {[%clk 0:02:38]} 11. Ne5 {[%clk 0:02:07]}  Bb7 {[%clk 0:02:36]} 12. Be1 {[%clk 0:02:00]}  Rc8 {[%clk 0:02:22]} 13. Bf5 {[%clk 0:01:53]}  Ra8 {[%clk 0:02:18]} 14. f4 {[%clk 0:01:51]}  cxd4 {[%clk 0:02:03]} 15. exd4 {[%clk 0:01:48]}  Nxd4 {[%clk 0:01:52]} 16. Bd3 {[%clk 0:01:29]}  Ne4 {[%clk 0:01:51]} 17. Ne2 {[%clk 0:01:07]}  Nf5 {[%clk 0:01:44]} 18. Rf3 {[%clk 0:01:01]}  Bc5+ {[%clk 0:01:04]} 19. Kh1 {[%clk 0:00:59]}  a5 {[%clk 0:01:04]} 20. Rh3 {[%clk 0:00:57]}  Qe7 {[%clk 0:00:47]} 21. Nc3 {[%clk 0:00:54]}  g6 {[%clk 0:00:37]} 22. Qe2 {[%clk 0:00:41]}  f6 {[%clk 0:00:30]} 23. Nxe4 {[%clk 0:00:31]}  dxe4 {[%clk 0:00:31]} 24. Bc4+ {[%clk 0:00:31]}  Kg7 {[%clk 0:00:31]} 25. Ng4 {[%clk 0:00:28]}  Rad8 {[%clk 0:00:27]} 26. Bc3 {[%clk 0:00:26]}  Bd4 {[%clk 0:00:26]} 27. Be1 {[%clk 0:00:19]}  e3 {[%clk 0:00:24]} 28. Bd3 {[%clk 0:00:17]}  Rd5 {[%clk 0:00:07]} 29. Bxf5 {[%clk 0:00:11]}  Rxf5 {[%clk 0:00:07]} 30. Nxe3 {[%clk 0:00:12]}  Rc5 {[%clk 0:00:06]} 31. Nf5+ {[%clk 0:00:12]}  Rxf5 {[%clk 0:00:01]} 32. Qxe7+ {[%clk 0:00:12]}  Rf7 {[%clk 0:00:02]} 33. Rxh7+ {[%clk 0:00:12]}  Kxh7 {[%clk 0:00:03]} 34. Qxf7+ {[%clk 0:00:13]}  Kh6 {[%clk 0:00:04]} 35. Rc7 {[%clk 0:00:09]}  Kh5 {[%clk 0:00:02]} 36. Qh7+ {[%clk 0:00:09]}  Kg4 {[%clk 0:00:03]} 37. Qh3+ {[%clk 0:00:08]}  Kxf4 {[%clk 0:00:03]} 38. Rxb7 {[%clk 0:00:09]}  Ke5 {[%clk 0:00:00]} 39. g4 {[%clk 0:00:09]} 1-0